Workbook

Sheet 2024 Financials
C1: Name: | D1: 4 Plex | I1: ANNUAL PROPERTY OPERATING DATA
C2: Location: | D2: 4831 Tama St | I2: Date: | J2: 2025-10-09
B3: Type of Property: | C3: Multi-Family Property | H3: Purchase Price: | I3: 269900
C4: Size of Property: # Units: 4 | H4: Cost of Acquisition:
B5: Purpose: | C5: Owner's Statement | E5: Broker's Reconstructed | J5: Price Per Unit | K5: =I3/4 -> 67475
C6: Existing Financing | E6: Potential Financing | J6: Down Payment: | K6: =I3*0.2 -> 53980
C7: Seller's Position | E7: Buyer's Position
C8: Forecast
B10: Existing | C10: Balance | D10: Payment | E10: #Pmts/Yr | F10: Interest | G10: Term | J10: Assessed / Appraised Values
B11: 1st | J11: Land | K11: Dwelling Value
B12: 2nd | I12: Improvement | J12: 33300 | K12: 230200
B13: 3rd
C14: Potential: | I14: TOTAL | K14: =K12+J12 -> 263500 | L14: 1
B15: 1st
B16: 2nd
E17: $/sf or | G17: %
B18: ALL FIGURES ANNUAL | C18: $/unit | E18: of GOI | H18: Comments/Footnotes
A19: 1 | B19: POTENTIAL RENTAL INCOME | E19: 32797
A20: 2 | B20: Less: Vacancy & Cr Losses
A21: 3 | B21: EFFECTIVE RENTAL INCOME | E21: =E19-E20 -> 32797
A22: 4 | B22: Plus: Other Income | E22: 155
A23: 5 | B23: GROSS OPERATING INCOME | E23: =E21+E22 -> 32952
B24: OPERATING EXPENSES:
A25: 6 | B25: Real Estate Taxes | D25: 5033
A26: 7 | B26: Personal Property Taxes
A27: 8 | B27: Property Insurance | D27: 2801
A28: 9 | B28: Off-site Management
A29: 10 | B29: Management | D29: 2623 | H29: Affinity Management
A30: 11 | B30: Expenses / Benefits
A31: 12 | B31: Taxes / Workers' Comp
A32: 13 | B32: Repairs and Maintenance | D32: 1520
B33: Utilities
A34: 14 | B34: Electric | D34: 1215
A35: 15 | B35: Gas | D35: 646
A36: 16 | B36: Water | D36: 2015 | H36: High Bill; Tenant left water running
A37: 17 | B37: ALL COMMON COSTS
A38: 18 | B38: Accounting and Legal
A39: 19 | B39: RE Leasing Commissions
A40: 20 | B40: Advertising/Licenses/Permits
A41: 21 | B41: Supplies
A42: 22 | B42: Miscellaneous
B43: Contract Services:
A44: 23 | B44: Lawn & Snow | D44: 239
A45: 24 | B45: Garbage | D45: 610
A46: 25 | B46: Cleaning Payroll
A47: 26 | B47: Exterminator
A48: 27 | B48: Reserves
A49: 28
A50: 29 | B50: TOTAL OPERATING EXPENSES | E50: =D25+D29+D32+D34+D35+D36+D44+D45+D27 -> 16702
A51: 30 | B51: NET OPERATING INCOME | E51: =E23-E50 -> 16250
A52: 31 | B52: Less:Annual Debt Service
A53: 35 | B53: CASH FLOW BEFORE TAXES | E53: =E51+E25 -> 16250
B54: *Information deemed reliable but not
B55: guaranteed. Rates of return and cash flow
B56: are not warranted or guaranteed by seller
B57: or by broker. Past performance does not
B58: guaranty future results.

Sheet Current Financials
C1: Name: | D1: 4 Plex | I1: ANNUAL PROPERTY OPERATING DATA
C2: Location: | D2: 4831 Tama St | I2: Date: | J2: 2025-10-09
B3: Type of Property: | C3: Multi-Family Property | H3: Purchase Price: | I3: 269900
C4: Size of Property: # Units: 4 | H4: Cost of Acquisition:
B5: Purpose: | C5: Owner's Statement | E5: Broker's Reconstructed | J5: Price Per Unit | K5: =I3/4 -> 67475
C6: Existing Financing | E6: Potential Financing | J6: Down Payment: | K6: =I3*0.25 -> 67475
C7: Seller's Position | E7: Buyer's Position
C8: Forecast
B10: Existing | C10: Balance | D10: Payment | E10: #Pmts/Yr | F10: Interest | G10: Term | J10: Assessed / Appraised Values
B11: 1st | C11: =I3-K6 -> 202425 | D11: =PMT(6.3%/12,300,-C11) -> 1341.59892 | E11: 12 | F11: 6.3 | G11: 5 | J11: Land | K11: Dwelling Value
B12: 2nd | I12: Improvement | J12: 33300 | K12: 230200
B13: 3rd
C14: Potential: | I14: TOTAL | K14: =K12+J12 -> 263500 | L14: 1
B15: 1st
B16: 2nd
E17: $/sf or | G17: %
B18: ALL FIGURES ANNUAL | C18: $/unit | E18: of GOI | H18: Comments/Footnotes
A19: 1 | B19: POTENTIAL RENTAL INCOME | E19: 32797 | H19: $675 - $725 Current Rent
A20: 2 | B20: Less: Vacancy & Cr Losses
A21: 3 | B21: EFFECTIVE RENTAL INCOME | E21: =E19-E20 -> 32797
A22: 4 | B22: Plus: Other Income | E22: 155
A23: 5 | B23: GROSS OPERATING INCOME | E23: =E21+E22 -> 32952
B24: OPERATING EXPENSES:
A25: 6 | B25: Real Estate Taxes | D25: 5033 | F25: 2025
A26: 7 | B26: Personal Property Taxes
A27: 8 | B27: Property Insurance | D27: 2801
A28: 9 | B28: Off-site Management
A29: 10 | B29: Management | D29: 2623 | H29: Affinity Management
A30: 11 | B30: Expenses / Benefits
A31: 12 | B31: Taxes / Workers' Comp
A32: 13 | B32: Repairs and Maintenance | D32: 1389
B33: Utilities
A34: 14 | B34: Electric | D34: 913
A35: 15 | B35: Gas | D35: 535
A36: 16 | B36: Water | D36: 2015
A37: 17 | B37: ALL COMMON COSTS
A38: 18 | B38: Accounting and Legal
A39: 19 | B39: RE Leasing Commissions
A40: 20 | B40: Advertising/Licenses/Permits
A41: 21 | B41: Supplies
A42: 22 | B42: Miscellaneous
B43: Contract Services:
A44: 23 | B44: Lawn & Snow | D44: 239
A45: 24 | B45: Garbage | D45: 610
A46: 25 | B46: Cleaning Payroll
A47: 26 | B47: Exterminator
A48: 27 | B48: Reserves
A49: 28
A50: 29 | B50: TOTAL OPERATING EXPENSES | E50: =D25+D29+D32+D34+D35+D36+D44+D45+D27 -> 16158
A51: 30 | B51: NET OPERATING INCOME | E51: =E23-E50 -> 16794
A52: 31 | B52: Less:Annual Debt Service | E52: =D11*12 -> 16099.18703
A53: 35 | B53: CASH FLOW BEFORE TAXES | E53: =E51-E52 -> 694.8129655
B54: *Information deemed reliable but not
B55: guaranteed. Rates of return and cash flow
B56: are not warranted or guaranteed by seller
B57: or by broker. Past performance does not
B58: guaranty future results.

Sheet Proforma
C1: Name: | D1: 4 Plex | I1: ANNUAL PROPERTY OPERATING DATA
C2: Location: | D2: 4831 Tama St | I2: Date: | J2: 2025-10-09
B3: Type of Property: | C3: Multi-Family Property | H3: Purchase Price: | I3: 269900
C4: Size of Property: # Units: 4 | H4: Cost of Acquisition:
B5: Purpose: | C5: Owner's Statement | E5: Broker's Reconstructed | J5: Price Per Unit | K5: 67475
C6: Existing Financing | E6: Potential Financing | J6: Down Payment: | K6: =I3*0.25 -> 67475
C7: Seller's Position | E7: Buyer's Position
C8: Forecast
B10: Existing | C10: Balance | D10: Payment | E10: #Pmts/Yr | F10: Interest | G10: Term | J10: Assessed / Appraised Values
B11: 1st | C11: =I3-K6 -> 202425 | D11: =PMT(6.3%/12,300,C11) -> -1341.59892 | E11: 12 | F11: 6.3 | G11: 5 | J11: Land | K11: Dwelling Value
B12: 2nd | I12: Improvement | J12: 33300 | K12: 230200
B13: 3rd
C14: Potential: | I14: TOTAL | K14: =K12+J12 -> 263500 | L14: 1
B15: 1st
B16: 2nd
E17: $/sf or | G17: %
B18: ALL FIGURES ANNUAL | C18: $/unit | E18: of GOI | H18: Comments/Footnotes
A19: 1 | B19: POTENTIAL RENTAL INCOME | E19: 39600 | H19: Rent = $825 | I19: =3300*12 -> 39600
A20: 2 | B20: Less: Vacancy & Cr Losses | E20: =E19*0.05 -> 1980 | F20: 0.05
A21: 3 | B21: EFFECTIVE RENTAL INCOME | E21: =E19-E20 -> 37620
A22: 4 | B22: Plus: Other Income | E22: =1080+320 -> 1400 | H22: Garage $90*12 | I22: Laundry = 320
A23: 5 | B23: GROSS OPERATING INCOME | E23: =E21+E22 -> 39020
B24: OPERATING EXPENSES:
A25: 6 | B25: Real Estate Taxes | D25: 5085 | F25: 2025
A26: 7 | B26: Personal Property Taxes
A27: 8 | B27: Property Insurance | D27: 3000 | H27: Projection
A28: 9 | B28: Off-site Management
A29: 10 | B29: Management | D29: 2623 | H29: Affinity Management
A30: 11 | B30: Expenses / Benefits
A31: 12 | B31: Taxes / Workers' Comp
A32: 13 | B32: Repairs and Maintenance | D32: 1520
B33: Utilities
A34: 14 | B34: Electric | D34: 1215
A35: 15 | B35: Gas | D35: 646
A36: 16 | B36: Water | D36: 1566
A37: 17 | B37: ALL COMMON COSTS
A38: 18 | B38: Accounting and Legal
A39: 19 | B39: RE Leasing Commissions
A40: 20 | B40: Advertising/Licenses/Permits
A41: 21 | B41: Supplies
A42: 22 | B42: Miscellaneous
B43: Contract Services:
A44: 23 | B44: Lawn & Snow | D44: 239
A45: 24 | B45: Garbage | D45: 610
A46: 25 | B46: Cleaning Payroll
A47: 26 | B47: Exterminator
A48: 27 | B48: Reserves
A49: 28
A50: 29 | B50: TOTAL OPERATING EXPENSES | E50: =D25+D29+D32+D34+D35+D36+D44+D45+D27 -> 16504
A51: 30 | B51: NET OPERATING INCOME | E51: =E23-E50 -> 22516 | G51: =E51/269900 -> 0.08342349018 | H51: Cap
A52: 31 | B52: Less:Annual Debt Service | E52: =D11*12 -> -16099.18703
A53: 35 | B53: CASH FLOW BEFORE TAXES | E53: 6416.81
B54: *Information deemed reliable but not
B55: guaranteed. Rates of return and cash flow
B56: are not warranted or guaranteed by seller
B57: or by broker. Past performance does not
B58: guaranty future results.

Sheet Proforma Self Managed
C1: Name: | D1: 4 Plex | I1: ANNUAL PROPERTY OPERATING DATA
C2: Location: | D2: 4831 Tama St | I2: Date: | J2: 2025-10-09
B3: Type of Property: | C3: Multi-Family Property | H3: Purchase Price: | I3: 269900
C4: Size of Property: # Units: 4 | H4: Cost of Acquisition:
B5: Purpose: | C5: Owner's Statement | E5: Broker's Reconstructed | J5: Price Per Unit | K5: 67475
C6: Existing Financing | E6: Potential Financing | J6: Down Payment: | K6: =I3*0.25 -> 67475
C7: Seller's Position | E7: Buyer's Position
C8: Forecast
B10: Existing | C10: Balance | D10: Payment | E10: #Pmts/Yr | F10: Interest | G10: Term | J10: Assessed / Appraised Values
B11: 1st | C11: =I3-K6 -> 202425 | D11: =PMT(6.3%/12,300,-C11) -> 1341.59892 | E11: 12 | F11: 6.3 | G11: 5 Years | J11: Land | K11: Dwelling Value
B12: 2nd | I12: Improvement | J12: 33300 | K12: 230200
B13: 3rd
C14: Potential: | I14: TOTAL | K14: =K12+J12 -> 263500 | L14: 1
B15: 1st
B16: 2nd
E17: $/sf or | G17: %
B18: ALL FIGURES ANNUAL | C18: $/unit | E18: of GOI | H18: Comments/Footnotes
A19: 1 | B19: POTENTIAL RENTAL INCOME | E19: 39600 | H19: Rent = $825 | I19: =3300*12 -> 39600
A20: 2 | B20: Less: Vacancy & Cr Losses | E20: =E19*0.05 -> 1980 | F20: 0.05
A21: 3 | B21: EFFECTIVE RENTAL INCOME | E21: =E19-E20 -> 37620
A22: 4 | B22: Plus: Other Income | E22: =1080+320 -> 1400 | H22: Garage $90*12 | I22: Laundry = 320
A23: 5 | B23: GROSS OPERATING INCOME | E23: =E21+E22 -> 39020
B24: OPERATING EXPENSES:
A25: 6 | B25: Real Estate Taxes | D25: 5085 | F25: 2025
A26: 7 | B26: Personal Property Taxes
A27: 8 | B27: Property Insurance | D27: 3000 | H27: Projection
A28: 9 | B28: Off-site Management
A29: 10 | B29: Management | H29: Self Management
A30: 11 | B30: Expenses / Benefits
A31: 12 | B31: Taxes / Workers' Comp
A32: 13 | B32: Repairs and Maintenance | D32: 1520
B33: Utilities
A34: 14 | B34: Electric | D34: 1215
A35: 15 | B35: Gas | D35: 646
A36: 16 | B36: Water | D36: 1566
A37: 17 | B37: ALL COMMON COSTS
A38: 18 | B38: Accounting and Legal
A39: 19 | B39: RE Leasing Commissions
A40: 20 | B40: Advertising/Licenses/Permits
A41: 21 | B41: Supplies
A42: 22 | B42: Miscellaneous
B43: Contract Services:
A44: 23 | B44: Lawn & Snow | D44: 239
A45: 24 | B45: Garbage | D45: 610
A46: 25 | B46: Cleaning Payroll
A47: 26 | B47: Exterminator
A48: 27 | B48: Reserves
A49: 28
A50: 29 | B50: TOTAL OPERATING EXPENSES | E50: =D25+D29+D32+D34+D35+D36+D44+D45+D27 -> 13881
A51: 30 | B51: NET OPERATING INCOME | E51: =E23-E50 -> 25139 | G51: =E51/269900 -> 0.09314190441 | H51: Cap
A52: 31 | B52: Less:Annual Debt Service | E52: =D11*12 -> 16099.18703
A53: 35 | B53: CASH FLOW BEFORE TAXES | E53: =E51-E52 -> 9039.812966
B54: *Information deemed reliable but not
B55: guaranteed. Rates of return and cash flow
B56: are not warranted or guaranteed by seller
B57: or by broker. Past performance does not
B58: guaranty future results.
